[Event "Titled Tuesday Blitz February 07 Early 2023"]
[White "Vakhlamov, Igor L."]
[Black "Jimenez Almeida, Luis David"]
[WhiteFideId "24126748"]
[BlackFideId "22242244"]
[WhiteElo "2413"]
[BlackElo "2242"]
[Result "1-0"]
[Round "01"]
[TimeControl "180+2"]
[Date "2023.02.07"]
[WhiteClock "0:01:56"]
[BlackClock "0:01:07"]

1. e4 {[%clk 0:02:59]}  Nf6 {[%clk 0:02:59]} 2. Nc3 {[%clk 0:02:59]}  d5 {[%clk 0:02:54]} 3. exd5 {[%clk 0:02:57]}  Nxd5 {[%clk 0:02:54]} 4. Qf3 {[%clk 0:02:57]}  Nb6 {[%clk 0:02:52]} 5. a4 {[%clk 0:02:47]}  a5 {[%clk 0:02:50]} 6. Bb5+ {[%clk 0:02:40]}  N8d7 {[%clk 0:02:45]} 7. Nh3 {[%clk 0:02:37]}  c6 {[%clk 0:02:44]} 8. Be2 {[%clk 0:02:36]}  e5 {[%clk 0:02:41]} 9. O-O {[%clk 0:02:36]}  Be7 {[%clk 0:02:40]} 10. Qg3 {[%clk 0:02:30]}  O-O {[%clk 0:02:38]} 11. d3 {[%clk 0:02:30]}  f5 {[%clk 0:02:36]} 12. f4 {[%clk 0:02:30]}  Bf6 {[%clk 0:02:31]} 13. fxe5 {[%clk 0:02:28]}  Nxe5 {[%clk 0:02:32]} 14. Bf4 {[%clk 0:02:25]}  Re8 {[%clk 0:02:13]} 15. Rae1 {[%clk 0:02:25]}  Nf7 {[%clk 0:01:47]} 16. Kh1 {[%clk 0:02:18]}  Bxc3 {[%clk 0:01:31]} 17. bxc3 {[%clk 0:02:19]}  Nxa4 {[%clk 0:01:31]} 18. Bh5 {[%clk 0:02:16]}  Rxe1 {[%clk 0:01:26]} 19. Rxe1 {[%clk 0:02:17]}  Bd7 {[%clk 0:01:20]} 20. Ng5 {[%clk 0:01:58]}  Nxg5 {[%clk 0:01:16]} 21. Bxg5 {[%clk 0:01:59]}  Qf8 {[%clk 0:01:14]} 22. Be7 {[%clk 0:01:59]}  Qb8 {[%clk 0:01:11]} 23. Bd6 {[%clk 0:01:56]}  Qd8 {[%clk 0:01:07]} 24. Re7 {[%clk 0:01:56]} 1-0


[Site "https://www.chess.com"]

[Event "Titled Tuesday Blitz February 07 Early 2023"]
[White "Pakleza, Zbigniew"]
[Black "Turzo, Attila"]
[WhiteFideId "1119290"]
[BlackFideId "704954"]
[WhiteElo "2494"]
[BlackElo "2279"]
[Result "1-0"]
[Round "01"]
[TimeControl "180+2"]
[Date "2023.02.07"]
[WhiteClock "0:00:06"]
[BlackClock "0:00:30"]

1. d4 {[%clk 0:03:00]}  Nf6 {[%clk 0:02:58]} 2. Nf3 {[%clk 0:03:00]}  e6 {[%clk 0:02:56]} 3. Bf4 {[%clk 0:03:01]}  d5 {[%clk 0:02:55]} 4. e3 {[%clk 0:03:01]}  Bd6 {[%clk 0:02:55]} 5. Bg3 {[%clk 0:03:01]}  c5 {[%clk 0:02:50]} 6. c3 {[%clk 0:03:01]}  Qc7 {[%clk 0:02:48]} 7. Nbd2 {[%clk 0:03:00]}  Nbd7 {[%clk 0:02:48]} 8. Be2 {[%clk 0:03:00]}  O-O {[%clk 0:02:44]} 9. c4 {[%clk 0:03:00]}  b6 {[%clk 0:02:40]} 10. Rc1 {[%clk 0:02:58]}  Bb7 {[%clk 0:02:40]} 11. dxc5 {[%clk 0:02:51]}  bxc5 {[%clk 0:02:40]} 12. O-O {[%clk 0:02:41]}  Rac8 {[%clk 0:02:39]} 13. Qa4 {[%clk 0:02:34]}  Bxg3 {[%clk 0:02:36]} 14. hxg3 {[%clk 0:02:35]}  Qb6 {[%clk 0:02:34]} 15. Nb3 {[%clk 0:02:29]}  Rfd8 {[%clk 0:02:24]} 16. Rfd1 {[%clk 0:02:29]}  Bc6 {[%clk 0:02:21]} 17. Qa3 {[%clk 0:02:26]}  Ba8 {[%clk 0:02:14]} 18. Rc2 {[%clk 0:02:16]}  Rc7 {[%clk 0:02:10]} 19. Rdc1 {[%clk 0:02:12]}  Rdc8 {[%clk 0:02:05]} 20. cxd5 {[%clk 0:02:08]}  exd5 {[%clk 0:01:41]} 21. Ba6 {[%clk 0:01:57]}  Bb7 {[%clk 0:01:31]} 22. Bxb7 {[%clk 0:01:55]}  Qxb7 {[%clk 0:01:26]} 23. Nxc5 {[%clk 0:01:41]}  Qb5 {[%clk 0:01:18]} 24. Nxd7 {[%clk 0:01:24]}  Qxd7 {[%clk 0:01:14]} 25. Rxc7 {[%clk 0:00:37]}  Rxc7 {[%clk 0:01:15]} 26. Rxc7 {[%clk 0:00:36]}  Qxc7 {[%clk 0:01:15]} 27. Qc3 {[%clk 0:00:19]}  Qxc3 {[%clk 0:01:08]} 28. bxc3 {[%clk 0:00:20]}  Ne4 {[%clk 0:01:09]} 29. Nd4 {[%clk 0:00:19]}  Nxc3 {[%clk 0:01:09]} 30. a3 {[%clk 0:00:20]}  Kf8 {[%clk 0:01:03]} 31. Kf1 {[%clk 0:00:19]}  Ke8 {[%clk 0:01:01]} 32. f3 {[%clk 0:00:19]}  Kd7 {[%clk 0:01:01]} 33. Ke1 {[%clk 0:00:20]}  Nb1 {[%clk 0:00:58]} 34. a4 {[%clk 0:00:16]}  Nc3 {[%clk 0:00:58]} 35. a5 {[%clk 0:00:15]}  g6 {[%clk 0:00:51]} 36. g4 {[%clk 0:00:15]}  Na4 {[%clk 0:00:48]} 37. Kd2 {[%clk 0:00:14]}  Kd6 {[%clk 0:00:48]} 38. g5 {[%clk 0:00:11]}  Kc5 {[%clk 0:00:47]} 39. f4 {[%clk 0:00:10]}  Nb2 {[%clk 0:00:47]} 40. a6 {[%clk 0:00:08]}  Nc4+ {[%clk 0:00:41]} 41. Kd3 {[%clk 0:00:07]}  Kb6 {[%clk 0:00:41]} 42. e4 {[%clk 0:00:08]}  Kxa6 {[%clk 0:00:29]} 43. exd5 {[%clk 0:00:06]}  Nd6 {[%clk 0:00:29]} 44. Nc6 {[%clk 0:00:05]}  Kb6 {[%clk 0:00:28]} 45. Kd4 {[%clk 0:00:05]}  a5 {[%clk 0:00:26]} 46. Ke5 {[%clk 0:00:05]}  a4 {[%clk 0:00:26]} 47. Kxd6 {[%clk 0:00:04]}  a3 {[%clk 0:00:25]} 48. Nd4 {[%clk 0:00:03]}  a2 {[%clk 0:00:25]} 49. Nc2 {[%clk 0:00:02]}  Kb5 {[%clk 0:00:26]} 50. Ke5 {[%clk 0:00:02]}  Kc4 {[%clk 0:00:26]} 51. d6 {[%clk 0:00:03]}  Kc3 {[%clk 0:00:27]} 52. Na1 {[%clk 0:00:03]}  Kb2 {[%clk 0:00:28]} 53. d7 {[%clk 0:00:04]}  Kxa1 {[%clk 0:00:29]} 54. d8=Q {[%clk 0:00:05]}  Kb2 {[%clk 0:00:29]} 55. Qd4+ {[%clk 0:00:05]}  Kb1 {[%clk 0:00:30]} 56. Kf6 {[%clk 0:00:05]}  a1=Q {[%clk 0:00:29]} 57. Qxa1+ {[%clk 0:00:06]}  Kxa1 {[%clk 0:00:30]} 58. Kxf7 {[%clk 0:00:06]} 1-0


[Site "https://www.chess.com"]

[Event "Titled Tuesday Blitz February 07 Early 2023"]
[White "Jaskolka, Tomasz"]
[Black "Murzin, Volodar"]
[WhiteFideId "1170791"]
[BlackFideId "44155573"]
[WhiteElo "2238"]
[BlackElo "2604"]
[Result "1-0"]
[Round "01"]
[TimeControl "180+2"]
[Date "2023.02.07"]
[WhiteClock "0:00:07"]
[BlackClock "0:00:06"]

1. d4 {[%clk 0:02:54]}  Nf6 {[%clk 0:02:59]} 2. Bf4 {[%clk 0:02:53]}  g6 {[%clk 0:02:59]} 3. Nc3 {[%clk 0:02:52]}  d5 {[%clk 0:02:58]} 4. e3 {[%clk 0:02:53]}  Bg7 {[%clk 0:02:58]} 5. h4 {[%clk 0:02:53]}  O-O {[%clk 0:02:55]} 6. h5 {[%clk 0:02:50]}  Nxh5 {[%clk 0:02:45]} 7. Rxh5 {[%clk 0:02:50]}  gxh5 {[%clk 0:02:46]} 8. Qxh5 {[%clk 0:02:51]}  e6 {[%clk 0:02:39]} 9. Bd3 {[%clk 0:02:40]}  f5 {[%clk 0:02:39]} 10. Nf3 {[%clk 0:02:35]}  c5 {[%clk 0:02:34]} 11. Ng5 {[%clk 0:01:59]}  h6 {[%clk 0:02:32]} 12. Nf3 {[%clk 0:02:00]}  Nc6 {[%clk 0:02:24]} 13. Bxh6 {[%clk 0:01:51]}  cxd4 {[%clk 0:02:13]} 14. exd4 {[%clk 0:01:22]}  Bxh6 {[%clk 0:02:09]} 15. Qxh6 {[%clk 0:01:21]}  Qf6 {[%clk 0:02:10]} 16. Qh3 {[%clk 0:01:16]}  Nxd4 {[%clk 0:02:02]} 17. Nxd4 {[%clk 0:01:15]}  Qxd4 {[%clk 0:02:02]} 18. O-O-O {[%clk 0:01:14]}  Qg7 {[%clk 0:01:56]} 19. Rh1 {[%clk 0:01:00]}  Rf6 {[%clk 0:01:41]} 20. g4 {[%clk 0:00:54]}  fxg4 {[%clk 0:01:35]} 21. Qe3 {[%clk 0:00:39]}  Rf3 {[%clk 0:00:59]} 22. Qc5 {[%clk 0:00:23]}  Rh3 {[%clk 0:00:52]} 23. Rg1 {[%clk 0:00:22]}  Qh6+ {[%clk 0:00:48]} 24. f4 {[%clk 0:00:17]}  Rh1 {[%clk 0:00:39]} 25. b3 {[%clk 0:00:11]}  Qxf4+ {[%clk 0:00:27]} 26. Kb2 {[%clk 0:00:11]}  Rxg1 {[%clk 0:00:12]} 27. Qxg1 {[%clk 0:00:08]}  Bd7 {[%clk 0:00:12]} 28. Qh1 {[%clk 0:00:09]}  Qf7 {[%clk 0:00:11]} 29. Qh4 {[%clk 0:00:08]}  Qg7 {[%clk 0:00:10]} 30. Kc1 {[%clk 0:00:05]}  Rf8 {[%clk 0:00:10]} 31. Ne2 {[%clk 0:00:05]}  e5 {[%clk 0:00:10]} 32. Ng3 {[%clk 0:00:05]}  e4 {[%clk 0:00:08]} 33. Be2 {[%clk 0:00:05]}  Be6 {[%clk 0:00:05]} 34. Nh5 {[%clk 0:00:05]}  Qh6+ {[%clk 0:00:05]} 35. Kb2 {[%clk 0:00:05]}  Kh8 {[%clk 0:00:06]} 36. Qh2 {[%clk 0:00:04]}  Qxh5 {[%clk 0:00:04]} 37. Qxh5+ {[%clk 0:00:04]}  Kg7 {[%clk 0:00:05]} 38. Bxg4 {[%clk 0:00:05]}  Bf7 {[%clk 0:00:04]} 39. Qg5+ {[%clk 0:00:05]}  Kh8 {[%clk 0:00:05]} 40. Qh6+ {[%clk 0:00:06]}  Kg8 {[%clk 0:00:06]} 41. Be6 {[%clk 0:00:06]}  Bxe6 {[%clk 0:00:05]} 42. Qxe6+ {[%clk 0:00:07]}  Kg7 {[%clk 0:00:06]} 43. Qxd5 {[%clk 0:00:07]} 1-0


[Site "https://www.chess.com"]

[Event "Titled Tuesday Blitz February 07 Early 2023"]
[White "Hajiyev, Kanan"]
[Black "Kopylov, Alexander A."]
[WhiteFideId "13404148"]
[BlackFideId "4164857"]
[WhiteElo "2197"]
[BlackElo "2397"]
[Result "0-1"]
[Round "01"]
[TimeControl "180+2"]
[Date "2023.02.07"]
[WhiteClock "0:00:04"]
[BlackClock "0:01:17"]

1. d4 {[%clk 0:02:59]}  Nf6 {[%clk 0:03:00]} 2. Nf3 {[%clk 0:02:58]}  e6 {[%clk 0:03:00]} 3. c4 {[%clk 0:02:57]}  d5 {[%clk 0:02:59]} 4. cxd5 {[%clk 0:02:58]}  exd5 {[%clk 0:02:59]} 5. Nc3 {[%clk 0:02:58]}  Be6 {[%clk 0:02:56]} 6. Bf4 {[%clk 0:02:54]}  a6 {[%clk 0:02:56]} 7. e3 {[%clk 0:02:54]}  Nbd7 {[%clk 0:02:55]} 8. Be2 {[%clk 0:02:53]}  b5 {[%clk 0:02:55]} 9. O-O {[%clk 0:02:52]}  c5 {[%clk 0:02:54]} 10. dxc5 {[%clk 0:02:45]}  Bxc5 {[%clk 0:02:55]} 11. Rc1 {[%clk 0:02:45]}  O-O {[%clk 0:02:54]} 12. Nd4 {[%clk 0:02:44]}  Rc8 {[%clk 0:02:54]} 13. Bf3 {[%clk 0:02:40]}  Qb6 {[%clk 0:02:52]} 14. Nb3 {[%clk 0:02:25]}  Be7 {[%clk 0:02:50]} 15. Qd4 {[%clk 0:02:25]}  Rc4 {[%clk 0:02:45]} 16. Qxb6 {[%clk 0:02:23]}  Nxb6 {[%clk 0:02:46]} 17. Rfd1 {[%clk 0:02:15]}  Rfc8 {[%clk 0:02:45]} 18. Na5 {[%clk 0:02:09]}  R4c5 {[%clk 0:02:33]} 19. Nb7 {[%clk 0:02:04]}  Rc4 {[%clk 0:02:30]} 20. Bd6 {[%clk 0:01:42]}  Kf8 {[%clk 0:02:28]} 21. a3 {[%clk 0:01:39]}  Na4 {[%clk 0:02:18]} 22. Bxe7+ {[%clk 0:01:28]}  Kxe7 {[%clk 0:02:19]} 23. Na5 {[%clk 0:01:29]}  Nxc3 {[%clk 0:02:19]} 24. bxc3 {[%clk 0:01:03]}  Rxc3 {[%clk 0:02:18]} 25. Ra1 {[%clk 0:01:02]}  Ne4 {[%clk 0:02:14]} 26. h3 {[%clk 0:00:40]}  f5 {[%clk 0:02:14]} 27. a4 {[%clk 0:00:40]}  R8c5 {[%clk 0:02:00]} 28. Nb7 {[%clk 0:00:24]}  Rc7 {[%clk 0:02:00]} 29. Na5 {[%clk 0:00:24]}  R7c5 {[%clk 0:01:38]} 30. Nb7 {[%clk 0:00:23]}  R5c4 {[%clk 0:01:39]} 31. axb5 {[%clk 0:00:16]}  axb5 {[%clk 0:01:40]} 32. Rab1 {[%clk 0:00:14]}  b4 {[%clk 0:01:23]} 33. Na5 {[%clk 0:00:12]}  Kd6 {[%clk 0:01:17]} 34. Nxc4+ {[%clk 0:00:12]}  Rxc4 {[%clk 0:01:18]} 35. Rd4 {[%clk 0:00:11]}  Kc5 {[%clk 0:01:17]} 36. Rdd1 {[%clk 0:00:09]}  Nc3 {[%clk 0:01:17]} 37. Rdc1 {[%clk 0:00:07]}  Nxb1 {[%clk 0:01:17]} 38. Rxb1 {[%clk 0:00:08]}  d4 {[%clk 0:01:17]} 39. exd4+ {[%clk 0:00:06]}  Rxd4 {[%clk 0:01:18]} 40. Kf1 {[%clk 0:00:07]}  b3 {[%clk 0:01:18]} 41. Ke2 {[%clk 0:00:07]}  Kb4 {[%clk 0:01:18]} 42. Ke3 {[%clk 0:00:07]}  Rc4 {[%clk 0:01:19]} 43. Kd3 {[%clk 0:00:06]}  f4 {[%clk 0:01:18]} 44. g3 {[%clk 0:00:04]}  Bf5+ {[%clk 0:01:17]} 0-1


[Site "https://www.chess.com"]

[Event "Titled Tuesday Blitz February 07 Early 2023"]
[White "Borges Feria, Yasel"]
[Black "Manukian, Artak"]
[WhiteFideId "3504921"]
[BlackFideId "13301373"]
[WhiteElo "2439"]
[BlackElo "2196"]
[Result "1-0"]
[Round "01"]
[TimeControl "180+2"]
[Date "2023.02.07"]
[WhiteClock "0:00:51"]
[BlackClock "0:00:26"]

1. d4 {[%clk 0:02:58]}  d5 {[%clk 0:02:59]} 2. c4 {[%clk 0:02:57]}  dxc4 {[%clk 0:02:59]} 3. Nf3 {[%clk 0:02:57]}  Nf6 {[%clk 0:02:59]} 4. e3 {[%clk 0:02:56]}  e6 {[%clk 0:02:55]} 5. Bxc4 {[%clk 0:02:56]}  c5 {[%clk 0:02:54]} 6. O-O {[%clk 0:02:55]}  a6 {[%clk 0:02:53]} 7. b3 {[%clk 0:02:53]}  b5 {[%clk 0:02:53]} 8. Be2 {[%clk 0:02:53]}  Bb7 {[%clk 0:02:53]} 9. Bb2 {[%clk 0:02:53]}  Nc6 {[%clk 0:02:52]} 10. a4 {[%clk 0:02:48]}  b4 {[%clk 0:02:50]} 11. Nbd2 {[%clk 0:02:47]}  Be7 {[%clk 0:02:46]} 12. Rc1 {[%clk 0:02:38]}  cxd4 {[%clk 0:02:44]} 13. Nxd4 {[%clk 0:02:39]}  Nxd4 {[%clk 0:02:44]} 14. Bxd4 {[%clk 0:02:40]}  O-O {[%clk 0:02:41]} 15. Bf3 {[%clk 0:02:40]}  Bxf3 {[%clk 0:02:39]} 16. Nxf3 {[%clk 0:02:41]}  Qd5 {[%clk 0:02:36]} 17. Bxf6 {[%clk 0:02:32]}  Qxd1 {[%clk 0:02:31]} 18. Rfxd1 {[%clk 0:02:33]}  Bxf6 {[%clk 0:02:31]} 19. Rc4 {[%clk 0:02:27]}  a5 {[%clk 0:02:28]} 20. Kf1 {[%clk 0:02:27]}  g5 {[%clk 0:02:25]} 21. Ke2 {[%clk 0:02:20]}  h5 {[%clk 0:02:20]} 22. h3 {[%clk 0:02:20]}  Kg7 {[%clk 0:02:16]} 23. g4 {[%clk 0:02:19]}  hxg4 {[%clk 0:02:13]} 24. hxg4 {[%clk 0:02:13]}  Rfc8 {[%clk 0:02:07]} 25. Rdc1 {[%clk 0:02:11]}  Rxc4 {[%clk 0:02:07]} 26. Rxc4 {[%clk 0:02:12]}  Ra6 {[%clk 0:01:38]} 27. Rc5 {[%clk 0:02:06]}  Kg6 {[%clk 0:01:36]} 28. Nd2 {[%clk 0:02:06]}  Bd8 {[%clk 0:01:34]} 29. Nc4 {[%clk 0:02:05]}  f6 {[%clk 0:01:31]} 30. Rc8 {[%clk 0:01:57]}  Be7 {[%clk 0:01:27]} 31. Rc7 {[%clk 0:01:55]}  Kf7 {[%clk 0:01:20]} 32. f4 {[%clk 0:01:41]}  gxf4 {[%clk 0:01:19]} 33. exf4 {[%clk 0:01:42]}  Ke8 {[%clk 0:01:14]} 34. Rb7 {[%clk 0:01:38]}  Bd8 {[%clk 0:01:12]} 35. f5 {[%clk 0:01:34]}  exf5 {[%clk 0:01:11]} 36. gxf5 {[%clk 0:01:35]}  Ra8 {[%clk 0:01:00]} 37. Kd3 {[%clk 0:01:31]}  Be7 {[%clk 0:00:57]} 38. Rb5 {[%clk 0:01:30]}  Bd8 {[%clk 0:00:52]} 39. Ke4 {[%clk 0:01:27]}  Ra7 {[%clk 0:00:49]} 40. Kf3 {[%clk 0:01:07]}  Rd7 {[%clk 0:00:46]} 41. Ke4 {[%clk 0:01:05]}  Re7+ {[%clk 0:00:46]} 42. Kd4 {[%clk 0:01:05]}  Rd7+ {[%clk 0:00:46]} 43. Rd5 {[%clk 0:01:06]}  Rh7 {[%clk 0:00:29]} 44. Nxa5 {[%clk 0:00:57]}  Rh4+ {[%clk 0:00:29]} 45. Kd3 {[%clk 0:00:57]}  Rh3+ {[%clk 0:00:29]} 46. Kc4 {[%clk 0:00:54]}  Rc3+ {[%clk 0:00:25]} 47. Kxb4 {[%clk 0:00:52]}  Bxa5+ {[%clk 0:00:26]} 48. Rxa5 {[%clk 0:00:53]}  Rf3 {[%clk 0:00:25]} 49. Rc5 {[%clk 0:00:52]}  Kd7 {[%clk 0:00:25]} 50. a5 {[%clk 0:00:52]}  Kd6 {[%clk 0:00:25]} 51. a6 {[%clk 0:00:49]}  Rxb3+ {[%clk 0:00:25]} 52. Kxb3 {[%clk 0:00:50]}  Kxc5 {[%clk 0:00:26]} 53. a7 {[%clk 0:00:51]} 1-0


[Site "https://www.chess.com"]

[Event "Titled Tuesday Blitz February 07 Early 2023"]
[White "The_Sherman_Variation"]
[Black "Galchenko, Matvey"]
[BlackFideId "24175480"]
[WhiteElo "2461"]
[BlackElo "2438"]
[Result "0-1"]
[Round "01"]
[TimeControl "180+2"]
[Date "2023.02.07"]
[WhiteClock "0:00:24"]
[BlackClock "0:00:10"]

1. e4 {[%clk 0:02:59]}  e6 {[%clk 0:02:54]} 2. d4 {[%clk 0:02:59]}  d5 {[%clk 0:02:54]} 3. Bd3 {[%clk 0:02:59]}  dxe4 {[%clk 0:02:54]} 4. Bxe4 {[%clk 0:02:59]}  Nf6 {[%clk 0:02:53]} 5. Bf3 {[%clk 0:03:00]}  c5 {[%clk 0:02:52]} 6. Ne2 {[%clk 0:03:00]}  e5 {[%clk 0:02:51]} 7. dxe5 {[%clk 0:02:58]}  Qxd1+ {[%clk 0:02:51]} 8. Kxd1 {[%clk 0:02:59]}  Ng4 {[%clk 0:02:52]} 9. Be3 {[%clk 0:02:57]}  Nxe3+ {[%clk 0:02:39]} 10. fxe3 {[%clk 0:02:58]}  Nd7 {[%clk 0:02:40]} 11. Nd2 {[%clk 0:02:55]}  Nxe5 {[%clk 0:02:40]} 12. c3 {[%clk 0:02:55]}  Be7 {[%clk 0:02:35]} 13. Kc2 {[%clk 0:02:54]}  Nxf3 {[%clk 0:02:33]} 14. gxf3 {[%clk 0:02:54]}  O-O {[%clk 0:02:30]} 15. a4 {[%clk 0:02:47]}  Re8 {[%clk 0:02:12]} 16. e4 {[%clk 0:02:44]}  Bg5 {[%clk 0:02:07]} 17. Nb3 {[%clk 0:02:37]}  b6 {[%clk 0:02:04]} 18. Rhg1 {[%clk 0:02:32]}  Bh6 {[%clk 0:01:57]} 19. Ng3 {[%clk 0:02:28]}  Be6 {[%clk 0:01:50]} 20. Rad1 {[%clk 0:02:18]}  Rad8 {[%clk 0:01:45]} 21. Nc1 {[%clk 0:02:14]}  Be3 {[%clk 0:01:40]} 22. Rge1 {[%clk 0:02:08]}  Bf4 {[%clk 0:01:32]} 23. Nce2 {[%clk 0:02:05]}  Bc7 {[%clk 0:01:28]} 24. Rg1 {[%clk 0:02:01]}  Bd7 {[%clk 0:01:22]} 25. b3 {[%clk 0:01:29]}  c4 {[%clk 0:01:21]} 26. Nh5 {[%clk 0:01:21]}  cxb3+ {[%clk 0:01:17]} 27. Kb2 {[%clk 0:01:16]}  Kh8 {[%clk 0:00:36]} 28. Rxg7 {[%clk 0:00:59]}  Be6 {[%clk 0:00:27]} 29. Rxd8 {[%clk 0:00:55]}  Rxd8 {[%clk 0:00:27]} 30. Nd4 {[%clk 0:00:55]}  Bc4 {[%clk 0:00:18]} 31. Rg2 {[%clk 0:00:51]}  Be5 {[%clk 0:00:16]} 32. Rd2 {[%clk 0:00:39]}  a6 {[%clk 0:00:12]} 33. f4 {[%clk 0:00:38]}  Bc7 {[%clk 0:00:12]} 34. Nxb3 {[%clk 0:00:32]}  Rxd2+ {[%clk 0:00:07]} 35. Nxd2 {[%clk 0:00:33]}  Bd3 {[%clk 0:00:08]} 36. e5 {[%clk 0:00:31]}  h6 {[%clk 0:00:07]} 37. Nf6 {[%clk 0:00:29]}  Bd8 {[%clk 0:00:08]} 38. Nd5 {[%clk 0:00:26]}  Kg7 {[%clk 0:00:07]} 39. Nb3 {[%clk 0:00:20]}  Kg6 {[%clk 0:00:06]} 40. Nd4 {[%clk 0:00:21]}  Bc4 {[%clk 0:00:06]} 41. Ne3 {[%clk 0:00:21]}  Bd3 {[%clk 0:00:06]} 42. f5+ {[%clk 0:00:21]}  Kg5 {[%clk 0:00:07]} 43. e6 {[%clk 0:00:19]}  Kf6 {[%clk 0:00:07]} 44. exf7 {[%clk 0:00:19]}  Kxf7 {[%clk 0:00:08]} 45. Nd5 {[%clk 0:00:20]}  Be4 {[%clk 0:00:08]} 46. Nf4 {[%clk 0:00:19]}  Bf6 {[%clk 0:00:08]} 47. Nfe6 {[%clk 0:00:19]}  Be5 {[%clk 0:00:07]} 48. Nc6 {[%clk 0:00:19]}  Kf6 {[%clk 0:00:05]} 49. Ncd8 {[%clk 0:00:19]}  Kxf5 {[%clk 0:00:05]} 50. Nd4+ {[%clk 0:00:19]}  Bxd4 {[%clk 0:00:05]} 51. cxd4 {[%clk 0:00:20]}  Bd5 {[%clk 0:00:06]} 52. Kc3 {[%clk 0:00:20]}  Kf6 {[%clk 0:00:06]} 53. Kb4 {[%clk 0:00:19]}  Ke7 {[%clk 0:00:06]} 54. a5 {[%clk 0:00:19]}  Kxd8 {[%clk 0:00:04]} 55. axb6 {[%clk 0:00:19]}  Kd7 {[%clk 0:00:05]} 56. Kc5 {[%clk 0:00:20]}  Bb7 {[%clk 0:00:06]} 57. d5 {[%clk 0:00:20]}  Ke7 {[%clk 0:00:06]} 58. h4 {[%clk 0:00:20]}  h5 {[%clk 0:00:06]} 59. Kd4 {[%clk 0:00:20]}  Kd6 {[%clk 0:00:07]} 60. Kc4 {[%clk 0:00:20]}  Bxd5+ {[%clk 0:00:07]} 61. Kb4 {[%clk 0:00:21]}  Bb7 {[%clk 0:00:08]} 62. Ka5 {[%clk 0:00:22]}  Kc5 {[%clk 0:00:08]} 63. Ka4 {[%clk 0:00:23]}  Kxb6 {[%clk 0:00:09]} 64. Kb4 {[%clk 0:00:23]}  a5+ {[%clk 0:00:10]} 65. Ka4 {[%clk 0:00:24]}  Bc6+ {[%clk 0:00:10]} 0-1


[Site "https://www.chess.com"]

[Event "Titled Tuesday Blitz February 07 Early 2023"]
[White "Minko, Dmitry"]
[Black "Saydaliev, Saidakbar"]
[WhiteFideId "24188468"]
[BlackFideId "14203693"]
[WhiteElo "2247"]
[BlackElo "2434"]
[Result "1-0"]
[Round "01"]
[TimeControl "180+2"]
[Date "2023.02.07"]
[WhiteClock "0:00:40"]
[BlackClock "0:00:43"]

1. e4 {[%clk 0:03:00]}  c5 {[%clk 0:02:57]} 2. Nf3 {[%clk 0:03:00]}  d6 {[%clk 0:02:57]} 3. d4 {[%clk 0:03:01]}  cxd4 {[%clk 0:02:58]} 4. Nxd4 {[%clk 0:03:02]}  Nf6 {[%clk 0:02:58]} 5. Nc3 {[%clk 0:03:02]}  a6 {[%clk 0:02:59]} 6. f3 {[%clk 0:03:02]}  e5 {[%clk 0:02:58]} 7. Nb3 {[%clk 0:03:02]}  Be6 {[%clk 0:02:57]} 8. Be3 {[%clk 0:03:01]}  h5 {[%clk 0:02:57]} 9. Qd2 {[%clk 0:02:56]}  Nbd7 {[%clk 0:02:57]} 10. Nd5 {[%clk 0:02:49]}  Bxd5 {[%clk 0:02:54]} 11. exd5 {[%clk 0:02:49]}  Rc8 {[%clk 0:02:55]} 12. Na5 {[%clk 0:02:37]}  b5 {[%clk 0:02:25]} 13. a4 {[%clk 0:02:14]}  Nb6 {[%clk 0:01:44]} 14. Nc6 {[%clk 0:02:01]}  Qc7 {[%clk 0:01:44]} 15. axb5 {[%clk 0:02:01]}  Nbxd5 {[%clk 0:01:44]} 16. Rxa6 {[%clk 0:01:56]}  Nxe3 {[%clk 0:01:31]} 17. Qxe3 {[%clk 0:01:56]}  Nd5 {[%clk 0:01:30]} 18. Qd2 {[%clk 0:01:49]}  Nf4 {[%clk 0:01:25]} 19. g3 {[%clk 0:01:47]}  Ne6 {[%clk 0:01:25]} 20. Bh3 {[%clk 0:01:32]}  h4 {[%clk 0:01:20]} 21. Bxe6 {[%clk 0:00:45]}  fxe6 {[%clk 0:01:21]} 22. Qg5 {[%clk 0:00:45]}  hxg3 {[%clk 0:01:08]} 23. Ra7 {[%clk 0:00:40]}  Qxa7 {[%clk 0:00:47]} 24. Nxa7 {[%clk 0:00:39]}  Rxc2 {[%clk 0:00:47]} 25. Qg6+ {[%clk 0:00:39]}  Kd7 {[%clk 0:00:43]} 26. Qxc2 {[%clk 0:00:40]} 1-0


[Site "https://www.chess.com"]

[Event "Titled Tuesday Blitz February 07 Early 2023"]
[White "Bilan, Danila"]
[Black "Rakhmatullaev, Almas"]
[WhiteFideId "24161918"]
[BlackFideId "14205793"]
[WhiteElo "2303"]
[BlackElo "2275"]
[Result "0-1"]
[Round "01"]
[TimeControl "180+2"]
[Date "2023.02.07"]
[WhiteClock "0:00:03"]
[BlackClock "0:00:45"]

1. d4 {[%clk 0:02:59]}  Nf6 {[%clk 0:02:58]} 2. Nf3 {[%clk 0:02:59]}  e6 {[%clk 0:02:58]} 3. g3 {[%clk 0:02:59]}  d5 {[%clk 0:02:59]} 4. Bg2 {[%clk 0:02:58]}  a6 {[%clk 0:03:00]} 5. O-O {[%clk 0:02:52]}  b5 {[%clk 0:02:59]} 6. Bf4 {[%clk 0:02:44]}  Bb7 {[%clk 0:02:59]} 7. Nbd2 {[%clk 0:02:43]}  Nbd7 {[%clk 0:02:59]} 8. c3 {[%clk 0:02:40]}  c5 {[%clk 0:02:59]} 9. a4 {[%clk 0:02:37]}  c4 {[%clk 0:02:54]} 10. Qc2 {[%clk 0:02:16]}  b4 {[%clk 0:02:48]} 11. Ne5 {[%clk 0:02:14]}  Qc8 {[%clk 0:02:40]} 12. e4 {[%clk 0:02:05]}  b3 {[%clk 0:02:27]} 13. Qb1 {[%clk 0:01:52]}  Nxe5 {[%clk 0:02:17]} 14. Bxe5 {[%clk 0:01:09]}  Be7 {[%clk 0:02:03]} 15. Re1 {[%clk 0:01:02]}  O-O {[%clk 0:01:59]} 16. Bxf6 {[%clk 0:00:42]}  Bxf6 {[%clk 0:01:58]} 17. exd5 {[%clk 0:00:41]}  Bxd5 {[%clk 0:01:48]} 18. Ne4 {[%clk 0:00:21]}  Be7 {[%clk 0:01:46]} 19. Qd1 {[%clk 0:00:19]}  Qb7 {[%clk 0:01:41]} 20. f3 {[%clk 0:00:10]}  f5 {[%clk 0:01:23]} 21. Nd2 {[%clk 0:00:09]}  f4 {[%clk 0:01:24]} 22. Qe2 {[%clk 0:00:09]}  Qc7 {[%clk 0:01:18]} 23. Kf2 {[%clk 0:00:07]}  Bd6 {[%clk 0:01:09]} 24. g4 {[%clk 0:00:03]}  Rae8 {[%clk 0:00:59]} 25. Ne4 {[%clk 0:00:03]}  Be7 {[%clk 0:00:50]} 26. Kg1 {[%clk 0:00:03]}  Bh4 {[%clk 0:00:45]} 0-1


[Site "https://www.chess.com"]